[Event "Titled Tuesday Blitz November 01 Late 2022"]
[White "Mickiewicz, Piotr"]
[Black "Salman, Pavel"]
[WhiteFideId "1114891"]
[BlackFideId "24153753"]
[WhiteElo "2246"]
[BlackElo "2187"]
[Result "0-1"]
[Round "08"]
[TimeControl "180+1"]
[Date "2022.11.02"]
[WhiteClock "0:00:01"]
[BlackClock "0:00:22"]

1. e4 {[%clk 0:03:00]}  d6 {[%clk 0:03:00]} 2. d4 {[%clk 0:02:54]}  Nf6 {[%clk 0:03:00]} 3. Nc3 {[%clk 0:02:54]}  g6 {[%clk 0:03:00]} 4. f3 {[%clk 0:02:53]}  Bg7 {[%clk 0:03:00]} 5. Be3 {[%clk 0:02:51]}  c6 {[%clk 0:02:57]} 6. Qd2 {[%clk 0:02:50]}  b5 {[%clk 0:02:58]} 7. h4 {[%clk 0:02:46]}  h5 {[%clk 0:02:57]} 8. Nh3 {[%clk 0:02:45]}  Nbd7 {[%clk 0:02:53]} 9. Ng5 {[%clk 0:02:43]}  Nb6 {[%clk 0:02:52]} 10. a4 {[%clk 0:02:40]}  Nc4 {[%clk 0:02:39]} 11. Bxc4 {[%clk 0:02:39]}  bxc4 {[%clk 0:02:40]} 12. a5 {[%clk 0:02:40]}  Qc7 {[%clk 0:02:37]} 13. d5 {[%clk 0:02:17]}  Rb8 {[%clk 0:02:25]} 14. Ra2 {[%clk 0:02:14]}  cxd5 {[%clk 0:02:23]} 15. exd5 {[%clk 0:02:09]}  Bf5 {[%clk 0:02:15]} 16. Bd4 {[%clk 0:01:48]}  O-O {[%clk 0:02:03]} 17. O-O {[%clk 0:01:45]}  Qd7 {[%clk 0:01:37]} 18. Re1 {[%clk 0:01:44]}  Rb7 {[%clk 0:01:28]} 19. a6 {[%clk 0:01:39]}  Rc7 {[%clk 0:01:28]} 20. Kh2 {[%clk 0:01:35]}  Rb8 {[%clk 0:01:28]} 21. g3 {[%clk 0:01:33]}  Ne8 {[%clk 0:01:23]} 22. Bxg7 {[%clk 0:01:24]}  Nxg7 {[%clk 0:01:24]} 23. Qd4 {[%clk 0:01:23]}  Bxc2 {[%clk 0:01:23]} 24. Re2 {[%clk 0:01:12]}  Bd3 {[%clk 0:01:23]} 25. Rd2 {[%clk 0:01:03]}  Nf5 {[%clk 0:01:22]} 26. Qf2 {[%clk 0:01:02]}  Rc5 {[%clk 0:01:16]} 27. Ra1 {[%clk 0:00:58]}  Rb3 {[%clk 0:01:06]} 28. Re1 {[%clk 0:00:55]}  Ra5 {[%clk 0:01:03]} 29. Ne6 {[%clk 0:00:18]}  Rxa6 {[%clk 0:00:53]} 30. Nd4 {[%clk 0:00:16]}  Rb7 {[%clk 0:00:41]} 31. Nxf5 {[%clk 0:00:14]}  Qxf5 {[%clk 0:00:42]} 32. Rg1 {[%clk 0:00:11]}  Rab6 {[%clk 0:00:40]} 33. Rg2 {[%clk 0:00:11]}  a5 {[%clk 0:00:39]} 34. Qd4 {[%clk 0:00:10]}  Qe5 {[%clk 0:00:34]} 35. Qf2 {[%clk 0:00:08]}  Rb4 {[%clk 0:00:32]} 36. Kh3 {[%clk 0:00:07]}  a4 {[%clk 0:00:27]} 37. g4 {[%clk 0:00:07]}  a3 {[%clk 0:00:24]} 38. bxa3 {[%clk 0:00:06]}  Rb3 {[%clk 0:00:24]} 39. Ne4 {[%clk 0:00:05]}  Bxe4 {[%clk 0:00:23]} 40. gxh5 {[%clk 0:00:01]}  Rxf3+ {[%clk 0:00:22]} 0-1


[Site "https://www.chess.com"]

[Event "Titled Tuesday Blitz November 01 Late 2022"]
[White "Myers, Dominique"]
[Black "Simonovic, Miroslav"]
[WhiteFideId "2041715"]
[BlackFideId "919152"]
[WhiteElo "1986"]
[BlackElo "2043"]
[Result "0-1"]
[Round "08"]
[TimeControl "180+1"]
[Date "2022.11.02"]
[WhiteClock "0:01:17"]
[BlackClock "0:00:36"]

1. d4 {[%clk 0:02:58]}  Nf6 {[%clk 0:02:59]} 2. Nf3 {[%clk 0:02:58]}  c5 {[%clk 0:03:00]} 3. e3 {[%clk 0:02:57]}  b6 {[%clk 0:02:59]} 4. Be2 {[%clk 0:02:56]}  Bb7 {[%clk 0:03:00]} 5. O-O {[%clk 0:02:56]}  g6 {[%clk 0:03:00]} 6. c3 {[%clk 0:02:51]}  Bg7 {[%clk 0:03:00]} 7. Nbd2 {[%clk 0:02:52]}  O-O {[%clk 0:03:00]} 8. a3 {[%clk 0:02:51]}  a5 {[%clk 0:02:59]} 9. Nc4 {[%clk 0:02:47]}  d5 {[%clk 0:02:58]} 10. Nce5 {[%clk 0:02:46]}  e6 {[%clk 0:02:57]} 11. Qc2 {[%clk 0:02:34]}  Nbd7 {[%clk 0:02:56]} 12. Rd1 {[%clk 0:02:33]}  Nxe5 {[%clk 0:02:53]} 13. Nxe5 {[%clk 0:02:29]}  Nd7 {[%clk 0:02:53]} 14. Nxd7 {[%clk 0:02:25]}  Qxd7 {[%clk 0:02:54]} 15. Bf3 {[%clk 0:02:20]}  c4 {[%clk 0:02:43]} 16. b3 {[%clk 0:02:12]}  b5 {[%clk 0:02:42]} 17. a4 {[%clk 0:02:11]}  cxb3 {[%clk 0:02:40]} 18. Qxb3 {[%clk 0:02:11]}  bxa4 {[%clk 0:02:40]} 19. Qxa4 {[%clk 0:02:06]}  Bc6 {[%clk 0:02:31]} 20. Qa2 {[%clk 0:02:04]}  Rfb8 {[%clk 0:02:28]} 21. Ba3 {[%clk 0:02:04]}  f5 {[%clk 0:02:23]} 22. Rdc1 {[%clk 0:02:03]}  Bb5 {[%clk 0:02:12]} 23. c4 {[%clk 0:02:00]}  Bxc4 {[%clk 0:01:47]} 24. Rxc4 {[%clk 0:01:58]}  dxc4 {[%clk 0:01:48]} 25. Bxa8 {[%clk 0:01:58]}  Rxa8 {[%clk 0:01:49]} 26. Qxc4 {[%clk 0:01:58]}  Qd5 {[%clk 0:01:40]} 27. Qxd5 {[%clk 0:01:48]}  exd5 {[%clk 0:01:41]} 28. Rc1 {[%clk 0:01:48]}  a4 {[%clk 0:01:36]} 29. g3 {[%clk 0:01:47]}  Bf8 {[%clk 0:01:35]} 30. Ra1 {[%clk 0:01:44]}  Bxa3 {[%clk 0:01:33]} 31. Rxa3 {[%clk 0:01:44]}  Kf7 {[%clk 0:01:33]} 32. Kf1 {[%clk 0:01:45]}  Ke6 {[%clk 0:01:34]} 33. Ke2 {[%clk 0:01:46]}  Kd6 {[%clk 0:01:34]} 34. Kd3 {[%clk 0:01:46]}  Kc6 {[%clk 0:01:35]} 35. Kc3 {[%clk 0:01:47]}  Kb5 {[%clk 0:01:35]} 36. Ra1 {[%clk 0:01:45]}  Rc8+ {[%clk 0:01:34]} 37. Kb2 {[%clk 0:01:45]}  Kb4 {[%clk 0:01:17]} 38. Rb1 {[%clk 0:01:43]}  Rc3 {[%clk 0:01:11]} 39. Ka2+ {[%clk 0:01:42]}  Rb3 {[%clk 0:01:11]} 40. Rc1 {[%clk 0:01:38]}  Rc3 {[%clk 0:00:57]} 41. Rb1+ {[%clk 0:01:37]}  Kc4 {[%clk 0:00:56]} 42. Rd1 {[%clk 0:01:32]}  Rc2+ {[%clk 0:00:51]} 43. Ka3 {[%clk 0:01:32]}  Rxf2 {[%clk 0:00:51]} 44. Rc1+ {[%clk 0:01:32]}  Kd3 {[%clk 0:00:51]} 45. Rc5 {[%clk 0:01:32]}  Ke4 {[%clk 0:00:46]} 46. h4 {[%clk 0:01:29]}  Rf3 {[%clk 0:00:45]} 47. Rc7 {[%clk 0:01:29]}  Rxe3+ {[%clk 0:00:45]} 48. Kxa4 {[%clk 0:01:29]}  Kxd4 {[%clk 0:00:44]} 49. Rxh7 {[%clk 0:01:29]}  Rxg3 {[%clk 0:00:44]} 50. Rg7 {[%clk 0:01:29]}  Rg4 {[%clk 0:00:43]} 51. Kb3 {[%clk 0:01:27]}  f4 {[%clk 0:00:41]} 52. Kc2 {[%clk 0:01:27]}  Ke3 {[%clk 0:00:41]} 53. Re7+ {[%clk 0:01:23]}  Kf2 {[%clk 0:00:40]} 54. Re6 {[%clk 0:01:20]}  Kg2 {[%clk 0:00:37]} 55. Kd3 {[%clk 0:01:20]}  f3 {[%clk 0:00:37]} 56. Ke3 {[%clk 0:01:17]}  f2 {[%clk 0:00:36]} 57. Rf6 {[%clk 0:01:17]}  Re4+ {[%clk 0:00:36]} 0-1


[Site "https://www.chess.com"]

[Event "Titled Tuesday Blitz November 01 Late 2022"]
[White "Paravyan, David"]
[Black "Zhigalko, Sergei"]
[WhiteFideId "4194985"]
[BlackFideId "13502956"]
[WhiteElo "2555"]
[BlackElo "2662"]
[Result "1-0"]
[Round "08"]
[TimeControl "180+1"]
[Date "2022.11.01"]
[WhiteClock "0:00:40"]
[BlackClock "0:00:01"]

1. e4 {[%clk 0:03:00]}  c5 {[%clk 0:03:00]} 2. Nf3 {[%clk 0:03:01]}  Nc6 {[%clk 0:03:00]} 3. Nc3 {[%clk 0:03:01]}  Nf6 {[%clk 0:02:57]} 4. Bb5 {[%clk 0:03:01]}  Qc7 {[%clk 0:02:57]} 5. O-O {[%clk 0:03:01]}  Nd4 {[%clk 0:02:56]} 6. Bc4 {[%clk 0:02:42]}  e6 {[%clk 0:02:45]} 7. h3 {[%clk 0:02:38]}  a6 {[%clk 0:02:44]} 8. a4 {[%clk 0:02:37]}  Be7 {[%clk 0:02:43]} 9. Re1 {[%clk 0:02:35]}  d6 {[%clk 0:02:42]} 10. d3 {[%clk 0:02:30]}  O-O {[%clk 0:02:41]} 11. Nxd4 {[%clk 0:02:30]}  cxd4 {[%clk 0:02:41]} 12. Ne2 {[%clk 0:02:31]}  Nxe4 {[%clk 0:02:42]} 13. Nxd4 {[%clk 0:02:28]}  Nf6 {[%clk 0:02:30]} 14. a5 {[%clk 0:02:22]}  d5 {[%clk 0:02:20]} 15. Bb3 {[%clk 0:02:22]}  h6 {[%clk 0:01:48]} 16. Qf3 {[%clk 0:02:19]}  Re8 {[%clk 0:01:48]} 17. Bf4 {[%clk 0:02:15]}  Qc5 {[%clk 0:01:43]} 18. c3 {[%clk 0:02:13]}  Bd7 {[%clk 0:01:42]} 19. Bd1 {[%clk 0:02:09]}  Nh7 {[%clk 0:01:32]} 20. Qg3 {[%clk 0:02:08]}  Bg5 {[%clk 0:01:27]} 21. Bd6 {[%clk 0:02:06]}  Qc8 {[%clk 0:01:26]} 22. Nf3 {[%clk 0:01:56]}  Bf6 {[%clk 0:01:25]} 23. d4 {[%clk 0:01:54]}  Ng5 {[%clk 0:01:02]} 24. Ne5 {[%clk 0:01:38]}  Be7 {[%clk 0:00:34]} 25. Bxe7 {[%clk 0:01:36]}  Rxe7 {[%clk 0:00:35]} 26. Bc2 {[%clk 0:01:35]}  Bb5 {[%clk 0:00:28]} 27. Qh4 {[%clk 0:01:33]}  Qd8 {[%clk 0:00:26]} 28. Re3 {[%clk 0:01:30]}  Rc7 {[%clk 0:00:19]} 29. Qh5 {[%clk 0:01:27]}  Qf6 {[%clk 0:00:17]} 30. Ng4 {[%clk 0:01:25]}  Qf4 {[%clk 0:00:12]} 31. Rae1 {[%clk 0:01:12]}  Rf8 {[%clk 0:00:11]} 32. h4 {[%clk 0:01:00]}  f5 {[%clk 0:00:04]} 33. Nxh6+ {[%clk 0:00:39]}  gxh6 {[%clk 0:00:04]} 34. hxg5 {[%clk 0:00:39]}  hxg5 {[%clk 0:00:02]} 35. Rxe6 {[%clk 0:00:40]}  Rg7 {[%clk 0:00:01]} 36. Rh6 {[%clk 0:00:40]} 1-0


[Site "https://www.chess.com"]

[Event "Titled Tuesday Blitz November 01 Late 2022"]
[White "Pavlidou, Ekaterini"]
[Black "Ardila, Oscar Humberto"]
[WhiteFideId "4213262"]
[BlackFideId "4404742"]
[WhiteElo "2125"]
[BlackElo "1898"]
[Result "1-0"]
[Round "08"]
[TimeControl "180+1"]
[Date "2022.11.02"]
[WhiteClock "0:02:28"]
[BlackClock "0:01:05"]

1. d4 {[%clk 0:02:59]}  Nf6 {[%clk 0:02:59]} 2. c4 {[%clk 0:02:58]}  e6 {[%clk 0:03:00]} 3. Nc3 {[%clk 0:02:57]}  Bb4 {[%clk 0:03:00]} 4. e3 {[%clk 0:02:56]}  Bxc3+ {[%clk 0:02:59]} 5. bxc3 {[%clk 0:02:55]}  O-O {[%clk 0:02:59]} 6. Bd3 {[%clk 0:02:55]}  c5 {[%clk 0:02:59]} 7. e4 {[%clk 0:02:55]}  d6 {[%clk 0:02:59]} 8. Ne2 {[%clk 0:02:56]}  Nc6 {[%clk 0:02:59]} 9. O-O {[%clk 0:02:55]}  Qe8 {[%clk 0:02:58]} 10. f4 {[%clk 0:02:55]}  h6 {[%clk 0:02:54]} 11. e5 {[%clk 0:02:53]}  dxe5 {[%clk 0:02:49]} 12. fxe5 {[%clk 0:02:54]}  Nd7 {[%clk 0:02:50]} 13. Bxh6 {[%clk 0:02:47]}  gxh6 {[%clk 0:02:36]} 14. Rf6 {[%clk 0:02:40]}  Nxf6 {[%clk 0:02:34]} 15. exf6 {[%clk 0:02:40]}  Qd8 {[%clk 0:02:01]} 16. Qf1 {[%clk 0:02:36]}  e5 {[%clk 0:01:57]} 17. Qf3 {[%clk 0:02:32]}  Re8 {[%clk 0:01:05]} 18. Qg3+ {[%clk 0:02:28]} 1-0


[Site "https://www.chess.com"]

[Event "Titled Tuesday Blitz November 01 Late 2022"]
[White "Poliakova, Varvara"]
[Black "Jaferian, Koosha"]
[WhiteFideId "13518313"]
[BlackFideId "12507440"]
[WhiteElo "1938"]
[BlackElo "2127"]
[Result "0-1"]
[Round "08"]
[TimeControl "180+1"]
[Date "2022.11.02"]
[WhiteClock "0:00:42"]
[BlackClock "0:00:16"]

1. f4 {[%clk 0:02:56]}  g6 {[%clk 0:02:57]} 2. Nf3 {[%clk 0:02:57]}  d5 {[%clk 0:02:58]} 3. g3 {[%clk 0:02:57]}  c5 {[%clk 0:02:58]} 4. Bg2 {[%clk 0:02:54]}  Bg7 {[%clk 0:02:59]} 5. O-O {[%clk 0:02:53]}  Nc6 {[%clk 0:03:00]} 6. d3 {[%clk 0:02:53]}  Nf6 {[%clk 0:03:00]} 7. Nc3 {[%clk 0:02:51]}  d4 {[%clk 0:02:58]} 8. Ne4 {[%clk 0:02:50]}  Qb6 {[%clk 0:02:49]} 9. Nxf6+ {[%clk 0:02:47]}  Bxf6 {[%clk 0:02:49]} 10. e4 {[%clk 0:02:45]}  dxe3 {[%clk 0:02:47]} 11. c3 {[%clk 0:02:45]}  Bf5 {[%clk 0:02:41]} 12. Nh4 {[%clk 0:02:45]}  Bxh4 {[%clk 0:02:37]} 13. gxh4 {[%clk 0:02:46]}  Rd8 {[%clk 0:02:34]} 14. Bxe3 {[%clk 0:02:41]}  Rxd3 {[%clk 0:02:29]} 15. Qe2 {[%clk 0:02:37]}  O-O {[%clk 0:02:27]} 16. h5 {[%clk 0:02:32]}  Rfd8 {[%clk 0:01:57]} 17. Qf2 {[%clk 0:02:24]}  Na5 {[%clk 0:01:44]} 18. Qf3 {[%clk 0:02:21]}  Nc4 {[%clk 0:01:41]} 19. Rae1 {[%clk 0:02:19]}  Nd2 {[%clk 0:01:37]} 20. Qf2 {[%clk 0:02:17]}  Nxf1 {[%clk 0:01:37]} 21. Bxf1 {[%clk 0:02:15]}  Rd1 {[%clk 0:01:18]} 22. Bxc5 {[%clk 0:02:12]}  Qc6 {[%clk 0:00:49]} 23. Bd4 {[%clk 0:02:03]}  Rxe1 {[%clk 0:00:47]} 24. Qxe1 {[%clk 0:02:04]}  Qe4 {[%clk 0:00:43]} 25. Qf2 {[%clk 0:01:59]}  f6 {[%clk 0:00:39]} 26. Qg3 {[%clk 0:01:49]}  Kf7 {[%clk 0:00:36]} 27. h6 {[%clk 0:01:46]}  Rxd4 {[%clk 0:00:33]} 28. cxd4 {[%clk 0:01:45]}  Qxd4+ {[%clk 0:00:34]} 29. Qf2 {[%clk 0:01:44]}  Qxf2+ {[%clk 0:00:35]} 30. Kxf2 {[%clk 0:01:44]}  g5 {[%clk 0:00:35]} 31. Kg3 {[%clk 0:01:43]}  Kg6 {[%clk 0:00:35]} 32. fxg5 {[%clk 0:01:41]}  Kxg5 {[%clk 0:00:34]} 33. h4+ {[%clk 0:01:38]}  Kxh6 {[%clk 0:00:34]} 34. Bg2 {[%clk 0:01:37]}  b6 {[%clk 0:00:34]} 35. Kf4 {[%clk 0:01:36]}  Be6 {[%clk 0:00:35]} 36. a3 {[%clk 0:01:30]}  Kg7 {[%clk 0:00:35]} 37. Bc6 {[%clk 0:01:26]}  h6 {[%clk 0:00:34]} 38. b4 {[%clk 0:01:24]}  Kf7 {[%clk 0:00:34]} 39. Be4 {[%clk 0:01:21]}  Ba2 {[%clk 0:00:34]} 40. Bc2 {[%clk 0:01:18]}  e5+ {[%clk 0:00:33]} 41. Kf5 {[%clk 0:01:17]}  Be6+ {[%clk 0:00:33]} 42. Ke4 {[%clk 0:01:16]}  Ke7 {[%clk 0:00:33]} 43. Ke3 {[%clk 0:01:14]}  f5 {[%clk 0:00:32]} 44. Kd3 {[%clk 0:01:09]}  Kf6 {[%clk 0:00:31]} 45. Kc3 {[%clk 0:01:04]}  f4 {[%clk 0:00:32]} 46. Be4 {[%clk 0:01:02]}  Bf5 {[%clk 0:00:32]} 47. Bc6 {[%clk 0:01:01]}  e4 {[%clk 0:00:27]} 48. Kd4 {[%clk 0:01:00]}  f3 {[%clk 0:00:27]} 49. Ke3 {[%clk 0:00:59]}  Ke5 {[%clk 0:00:28]} 50. Bb7 {[%clk 0:00:58]}  a5 {[%clk 0:00:23]} 51. Bc6 {[%clk 0:00:56]}  axb4 {[%clk 0:00:19]} 52. axb4 {[%clk 0:00:56]}  Kd6 {[%clk 0:00:19]} 53. b5 {[%clk 0:00:55]}  Kc5 {[%clk 0:00:19]} 54. Be8 {[%clk 0:00:53]}  Kb4 {[%clk 0:00:15]} 55. Bc6 {[%clk 0:00:52]}  Kc3 {[%clk 0:00:16]} 56. Bd5 {[%clk 0:00:50]}  Kc2 {[%clk 0:00:15]} 57. Bf7 {[%clk 0:00:48]}  Kd1 {[%clk 0:00:15]} 58. Bh5 {[%clk 0:00:46]}  Ke1 {[%clk 0:00:14]} 59. Bxf3 {[%clk 0:00:42]}  exf3 {[%clk 0:00:15]} 60. Kxf3 {[%clk 0:00:43]}  Bd7 {[%clk 0:00:15]} 61. Kf4 {[%clk 0:00:42]}  Bxb5 {[%clk 0:00:15]} 62. Kf5 {[%clk 0:00:42]}  h5 {[%clk 0:00:16]} 0-1


[Site "https://www.chess.com"]

[Event "Titled Tuesday Blitz November 01 Late 2022"]
[White "Przybylski, Wojciech"]
[Black "Putnam, Liam"]
[WhiteFideId "1117599"]
[BlackFideId "30938279"]
[WhiteElo "2221"]
[BlackElo "2082"]
[Result "1-0"]
[Round "08"]
[TimeControl "180+1"]
[Date "2022.11.02"]
[WhiteClock "0:00:13"]
[BlackClock "0:00:01"]

1. e4 {[%clk 0:03:00]}  e5 {[%clk 0:02:58]} 2. Nf3 {[%clk 0:03:00]}  Nc6 {[%clk 0:02:58]} 3. Bb5 {[%clk 0:03:00]}  a6 {[%clk 0:02:59]} 4. Ba4 {[%clk 0:03:01]}  Nf6 {[%clk 0:02:58]} 5. O-O {[%clk 0:03:01]}  b5 {[%clk 0:02:57]} 6. Bb3 {[%clk 0:03:01]}  Bc5 {[%clk 0:02:58]} 7. c3 {[%clk 0:02:59]}  d6 {[%clk 0:02:58]} 8. d3 {[%clk 0:02:57]}  O-O {[%clk 0:02:57]} 9. h3 {[%clk 0:02:56]}  h6 {[%clk 0:02:57]} 10. Re1 {[%clk 0:02:56]}  Bb7 {[%clk 0:02:54]} 11. Nbd2 {[%clk 0:02:55]}  Re8 {[%clk 0:02:42]} 12. Nf1 {[%clk 0:02:53]}  a5 {[%clk 0:02:37]} 13. a4 {[%clk 0:02:52]}  b4 {[%clk 0:02:27]} 14. Ng3 {[%clk 0:02:47]}  Rb8 {[%clk 0:02:11]} 15. Bd2 {[%clk 0:02:37]}  Bb6 {[%clk 0:02:05]} 16. Bc4 {[%clk 0:02:33]}  bxc3 {[%clk 0:02:04]} 17. bxc3 {[%clk 0:02:32]}  d5 {[%clk 0:01:59]} 18. exd5 {[%clk 0:02:31]}  Nxd5 {[%clk 0:02:00]} 19. Nf5 {[%clk 0:02:21]}  Qd7 {[%clk 0:01:54]} 20. N3h4 {[%clk 0:01:59]}  Nf6 {[%clk 0:01:47]} 21. Bxh6 {[%clk 0:01:52]}  gxh6 {[%clk 0:01:34]} 22. Nxh6+ {[%clk 0:01:52]}  Kh7 {[%clk 0:01:30]} 23. Nxf7 {[%clk 0:01:42]}  Rg8 {[%clk 0:01:27]} 24. Qf3 {[%clk 0:01:33]}  Qe7 {[%clk 0:00:23]} 25. Qf5+ {[%clk 0:01:17]}  Kg7 {[%clk 0:00:23]} 26. Ng5 {[%clk 0:01:07]}  Kf8 {[%clk 0:00:15]} 27. Ng6+ {[%clk 0:00:47]}  Rxg6 {[%clk 0:00:15]} 28. Qxg6 {[%clk 0:00:47]}  Nd8 {[%clk 0:00:13]} 29. Nh7+ {[%clk 0:00:37]}  Qxh7 {[%clk 0:00:10]} 30. Qxf6+ {[%clk 0:00:38]}  Nf7 {[%clk 0:00:11]} 31. Rxe5 {[%clk 0:00:37]}  Qg7 {[%clk 0:00:09]} 32. Qe7+ {[%clk 0:00:23]}  Kg8 {[%clk 0:00:08]} 33. Rg5 {[%clk 0:00:23]}  Rf8 {[%clk 0:00:04]} 34. Rxg7+ {[%clk 0:00:20]}  Kxg7 {[%clk 0:00:05]} 35. Re1 {[%clk 0:00:17]}  Bc8 {[%clk 0:00:03]} 36. Re4 {[%clk 0:00:16]}  Bf5 {[%clk 0:00:04]} 37. Rf4 {[%clk 0:00:14]}  Bg6 {[%clk 0:00:04]} 38. Qf6+ {[%clk 0:00:13]}  Kh7 {[%clk 0:00:03]} 39. Rh4+ {[%clk 0:00:13]}  Nh6 {[%clk 0:00:02]} 40. Qxf8 {[%clk 0:00:13]}  Bf5 {[%clk 0:00:01]} 1-0


[Site "https://www.chess.com"]

[Event "Titled Tuesday Blitz November 01 Late 2022"]
[White "Qashashvili, Alexandre"]
[Black "Hemam, Moulaye Brahim"]
[WhiteFideId "13600842"]
[BlackFideId "19600054"]
[WhiteElo "2405"]
[BlackElo "2088"]
[Result "1-0"]
[Round "08"]
[TimeControl "180+1"]
[Date "2022.11.02"]
[WhiteClock "0:00:56"]
[BlackClock "0:00:04"]

1. e4 {[%clk 0:02:38]}  d6 {[%clk 0:02:59]} 2. Nc3 {[%clk 0:02:39]}  Nf6 {[%clk 0:02:59]} 3. Nf3 {[%clk 0:02:40]}  e5 {[%clk 0:02:58]} 4. d4 {[%clk 0:02:41]}  exd4 {[%clk 0:02:58]} 5. Nxd4 {[%clk 0:02:42]}  Be7 {[%clk 0:02:58]} 6. Bg5 {[%clk 0:02:41]}  O-O {[%clk 0:02:58]} 7. Bd3 {[%clk 0:02:41]}  h6 {[%clk 0:02:57]} 8. Bh4 {[%clk 0:02:40]}  Bd7 {[%clk 0:02:55]} 9. O-O {[%clk 0:02:39]}  Nc6 {[%clk 0:02:55]} 10. Nxc6 {[%clk 0:02:38]}  Bxc6 {[%clk 0:02:56]} 11. h3 {[%clk 0:02:38]}  Re8 {[%clk 0:02:55]} 12. Bg3 {[%clk 0:02:37]}  d5 {[%clk 0:02:44]} 13. exd5 {[%clk 0:02:36]}  Nxd5 {[%clk 0:02:44]} 14. Nxd5 {[%clk 0:02:37]}  Qxd5 {[%clk 0:02:42]} 15. f3 {[%clk 0:02:30]}  Rad8 {[%clk 0:02:39]} 16. Kh2 {[%clk 0:02:28]}  Bd6 {[%clk 0:02:30]} 17. Bxd6 {[%clk 0:02:28]}  Rxd6 {[%clk 0:02:27]} 18. Kh1 {[%clk 0:02:26]}  Qe5 {[%clk 0:02:22]} 19. Re1 {[%clk 0:02:22]}  Qxb2 {[%clk 0:02:16]} 20. Rxe8+ {[%clk 0:02:22]}  Bxe8 {[%clk 0:02:17]} 21. Rb1 {[%clk 0:02:22]}  Qc3 {[%clk 0:01:43]} 22. Rxb7 {[%clk 0:02:21]}  Re6 {[%clk 0:01:42]} 23. Rb1 {[%clk 0:02:12]}  g6 {[%clk 0:01:29]} 24. Qc1 {[%clk 0:02:11]}  Kg7 {[%clk 0:01:28]} 25. Qf4 {[%clk 0:02:11]}  c5 {[%clk 0:01:17]} 26. h4 {[%clk 0:01:56]}  Rf6 {[%clk 0:01:08]} 27. Qc4 {[%clk 0:01:45]}  Qd4 {[%clk 0:00:59]} 28. Qxd4 {[%clk 0:01:44]}  cxd4 {[%clk 0:01:00]} 29. Rb7 {[%clk 0:01:41]}  a6 {[%clk 0:00:57]} 30. Kh2 {[%clk 0:01:38]}  Rd6 {[%clk 0:00:42]} 31. Ra7 {[%clk 0:01:32]}  Bb5 {[%clk 0:00:42]} 32. Bxb5 {[%clk 0:01:32]}  axb5 {[%clk 0:00:43]} 33. Rb7 {[%clk 0:01:31]}  Rd5 {[%clk 0:00:41]} 34. Kg3 {[%clk 0:01:30]}  Rc5 {[%clk 0:00:41]} 35. a3 {[%clk 0:01:25]}  Rxc2 {[%clk 0:00:40]} 36. Rxb5 {[%clk 0:01:25]}  d3 {[%clk 0:00:40]} 37. Rd5 {[%clk 0:01:25]}  d2 {[%clk 0:00:40]} 38. a4 {[%clk 0:01:24]}  Ra2 {[%clk 0:00:40]} 39. a5 {[%clk 0:01:25]}  f5 {[%clk 0:00:39]} 40. Kf4 {[%clk 0:01:20]}  Kf6 {[%clk 0:00:39]} 41. Ke3 {[%clk 0:01:20]}  g5 {[%clk 0:00:35]} 42. hxg5+ {[%clk 0:01:17]}  hxg5 {[%clk 0:00:35]} 43. Rxd2 {[%clk 0:01:16]}  f4+ {[%clk 0:00:32]} 44. Ke2 {[%clk 0:01:15]}  Rxa5 {[%clk 0:00:32]} 45. Rd6+ {[%clk 0:01:15]}  Kf5 {[%clk 0:00:32]} 46. Kf2 {[%clk 0:01:15]}  Re5 {[%clk 0:00:31]} 47. Ra6 {[%clk 0:01:14]}  Rc5 {[%clk 0:00:31]} 48. Kg1 {[%clk 0:01:13]}  Rd5 {[%clk 0:00:29]} 49. Kh2 {[%clk 0:01:14]}  Rc5 {[%clk 0:00:29]} 50. Kh3 {[%clk 0:01:14]}  Rd5 {[%clk 0:00:29]} 51. Ra8 {[%clk 0:01:13]}  Rd6 {[%clk 0:00:24]} 52. Ra5+ {[%clk 0:01:12]}  Kf6 {[%clk 0:00:17]} 53. Kg4 {[%clk 0:01:13]}  Rd2 {[%clk 0:00:16]} 54. Rf5+ {[%clk 0:01:10]}  Ke6 {[%clk 0:00:16]} 55. Rxg5 {[%clk 0:01:05]}  Rxg2+ {[%clk 0:00:16]} 56. Kxf4 {[%clk 0:01:06]}  Ra2 {[%clk 0:00:15]} 57. Rg6+ {[%clk 0:01:05]}  Kf7 {[%clk 0:00:15]} 58. Rb6 {[%clk 0:01:04]}  Ra7 {[%clk 0:00:14]} 59. Kg5 {[%clk 0:01:03]}  Ra5+ {[%clk 0:00:14]} 60. Kg4 {[%clk 0:01:02]}  Ra4+ {[%clk 0:00:13]} 61. f4 {[%clk 0:01:03]}  Ra7 {[%clk 0:00:13]} 62. Kg5 {[%clk 0:01:02]}  Ra5+ {[%clk 0:00:13]} 63. f5 {[%clk 0:01:03]}  Ra7 {[%clk 0:00:12]} 64. Rh6 {[%clk 0:01:03]}  Kg7 {[%clk 0:00:06]} 65. f6+ {[%clk 0:01:02]}  Kg8 {[%clk 0:00:06]} 66. Rg6+ {[%clk 0:00:56]}  Kf8 {[%clk 0:00:04]} 67. Rh6 {[%clk 0:00:56]} 1-0


[Site "https://www.chess.com"]

[Event "Titled Tuesday Blitz November 01 Late 2022"]
[White "Rangel, Daniel"]
[Black "Han, Yichen"]
[WhiteFideId "2124475"]
[BlackFideId "1054430"]
[WhiteElo "2225"]
[BlackElo "2323"]
[Result "0-1"]
[Round "08"]
[TimeControl "180+1"]
[Date "2022.11.02"]
[WhiteClock "0:00:02"]
[BlackClock "0:00:04"]

1. c4 {[%clk 0:03:00]}  e5 {[%clk 0:02:58]} 2. g3 {[%clk 0:02:55]}  Nc6 {[%clk 0:02:58]} 3. Bg2 {[%clk 0:02:54]}  f5 {[%clk 0:02:58]} 4. Nc3 {[%clk 0:02:54]}  Nf6 {[%clk 0:02:57]} 5. e3 {[%clk 0:02:55]}  Bb4 {[%clk 0:02:56]} 6. Nge2 {[%clk 0:02:53]}  d6 {[%clk 0:02:53]} 7. O-O {[%clk 0:02:52]}  Bxc3 {[%clk 0:02:51]} 8. Nxc3 {[%clk 0:02:51]}  O-O {[%clk 0:02:52]} 9. d4 {[%clk 0:02:46]}  Qe8 {[%clk 0:02:48]} 10. Nd5 {[%clk 0:02:44]}  Nxd5 {[%clk 0:02:47]} 11. cxd5 {[%clk 0:02:44]}  Nb8 {[%clk 0:02:36]} 12. dxe5 {[%clk 0:02:41]}  Qxe5 {[%clk 0:02:35]} 13. Qc2 {[%clk 0:02:28]}  Rf7 {[%clk 0:02:27]} 14. Bd2 {[%clk 0:02:28]}  b6 {[%clk 0:02:16]} 15. Bc3 {[%clk 0:02:25]}  Qe7 {[%clk 0:02:16]} 16. b4 {[%clk 0:02:24]}  Nd7 {[%clk 0:02:10]} 17. Bd4 {[%clk 0:02:22]}  Ne5 {[%clk 0:02:04]} 18. Rfc1 {[%clk 0:02:06]}  Bb7 {[%clk 0:02:00]} 19. Qb2 {[%clk 0:02:06]}  Re8 {[%clk 0:01:53]} 20. a4 {[%clk 0:01:54]}  Nd3 {[%clk 0:01:52]} 21. Qc3 {[%clk 0:01:53]}  Nxc1 {[%clk 0:01:52]} 22. Rxc1 {[%clk 0:01:54]}  Qd7 {[%clk 0:01:47]} 23. b5 {[%clk 0:01:47]}  a6 {[%clk 0:01:38]} 24. bxa6 {[%clk 0:01:30]}  Bxa6 {[%clk 0:01:37]} 25. a5 {[%clk 0:01:31]}  bxa5 {[%clk 0:01:27]} 26. Qxa5 {[%clk 0:01:32]}  Bd3 {[%clk 0:01:18]} 27. h4 {[%clk 0:01:18]}  Be4 {[%clk 0:01:16]} 28. Bf1 {[%clk 0:01:16]}  Rb8 {[%clk 0:00:58]} 29. Be2 {[%clk 0:01:02]}  f4 {[%clk 0:00:50]} 30. Kh2 {[%clk 0:00:21]}  fxg3+ {[%clk 0:00:40]} 31. Kxg3 {[%clk 0:00:22]}  Rbf8 {[%clk 0:00:35]} 32. f4 {[%clk 0:00:22]}  Qf5 {[%clk 0:00:27]} 33. Rg1 {[%clk 0:00:20]}  Qxd5 {[%clk 0:00:21]} 34. Qa6 {[%clk 0:00:13]}  Qc6 {[%clk 0:00:17]} 35. Qa2 {[%clk 0:00:03]}  d5 {[%clk 0:00:17]} 36. Qa1 {[%clk 0:00:04]}  Qg6+ {[%clk 0:00:15]} 37. Kf2 {[%clk 0:00:04]}  Qh6 {[%clk 0:00:12]} 38. h5 {[%clk 0:00:02]}  c6 {[%clk 0:00:05]} 39. Bg4 {[%clk 0:00:02]}  Re8 {[%clk 0:00:04]} 0-1


[Site "https://www.chess.com"]